[Event "Late-Titled-Tuesday-Blitz-October-17-2023"]
[Site "Chess.com"]
[Date "2023.10.17"]
[Round "8"]
[White "mishanick"]
[Black "Hrant_ChessMood"]
[Result "1-0"]
[WhiteElo "3036"]
[BlackElo "2922"]
[TimeControl "180+1"]
[EndTime "15:26:18 PDT"]
[Termination "mishanick won on time"]

1. d4 {[%clk 0:03:00.9]} 1... d5 {[%clk 0:03:00.3]} 2. c4 {[%clk 0:03:01.5]}
2... e6 {[%clk 0:03:00.9]} 3. Nc3 {[%clk 0:03:02.3]} 3... Nf6 {[%clk 0:03:01.4]}
4. cxd5 {[%clk 0:03:02.9]} 4... exd5 {[%clk 0:03:02.3]} 5. Bg5 {[%clk
0:03:03.3]} 5... Be7 {[%clk 0:03:00.8]} 6. e3 {[%clk 0:03:03.7]} 6... c6 {[%clk
0:03:00.6]} 7. Bd3 {[%clk 0:03:04.4]} 7... Nbd7 {[%clk 0:03:01.1]} 8. h3 {[%clk
0:03:03.7]} 8... Nf8 {[%clk 0:03:01.4]} 9. Nf3 {[%clk 0:03:03.1]} 9... Ne6
{[%clk 0:03:01.8]} 10. Bh4 {[%clk 0:03:03.4]} 10... g6 {[%clk 0:03:01.5]} 11.
Qc2 {[%clk 0:02:50.4]} 11... Ng7 {[%clk 0:03:00.7]} 12. O-O {[%clk 0:02:49.6]}
12... Bf5 {[%clk 0:02:59.4]} 13. Bxf6 {[%clk 0:02:44.1]} 13... Bxf6 {[%clk
0:02:59.4]} 14. e4 {[%clk 0:02:43]} 14... dxe4 {[%clk 0:02:59]} 15. Bxe4 {[%clk
0:02:43.9]} 15... O-O {[%clk 0:02:57.6]} 16. Rad1 {[%clk 0:02:44.2]} 16... Re8
{[%clk 0:02:45.6]} 17. Rfe1 {[%clk 0:02:43.7]} 17... Rc8 {[%clk 0:02:27]} 18. g4
{[%clk 0:02:34.3]} 18... Bxe4 {[%clk 0:02:26.9]} 19. Nxe4 {[%clk 0:02:35.2]}
19... Ne6 {[%clk 0:02:21.8]} 20. Qb3 {[%clk 0:01:57.8]} 20... Nf4 {[%clk
0:02:21.6]} 21. Qxb7 {[%clk 0:01:51]} 21... Nxh3+ {[%clk 0:02:21.1]} 22. Kg2
{[%clk 0:01:51.1]} 22... Nf4+ {[%clk 0:02:19.8]} 23. Kg3 {[%clk 0:01:51.6]}
23... Nd5 {[%clk 0:02:08.3]} 24. Re2 {[%clk 0:01:38.4]} 24... Rc7 {[%clk
0:01:58.7]} 25. Nxf6+ {[%clk 0:01:19.5]} 25... Nxf6 {[%clk 0:01:59.6]} 26. Rxe8+
{[%clk 0:01:19.6]} 26... Nxe8 {[%clk 0:02:00]} 27. Qb4 {[%clk 0:01:19.7]} 27...
Nf6 {[%clk 0:01:57]} 28. Re1 {[%clk 0:01:16.9]} 28... Nd5 {[%clk 0:01:56.1]} 29.
Qd2 {[%clk 0:01:14.5]} 29... Rb7 {[%clk 0:01:51.1]} 30. b3 {[%clk 0:01:11.7]}
30... Qd6+ {[%clk 0:01:49.2]} 31. Kg2 {[%clk 0:01:12]} 31... Kg7 {[%clk
0:01:42.6]} 32. Re4 {[%clk 0:01:11.2]} 32... Nf6 {[%clk 0:01:37.1]} 33. Rf4
{[%clk 0:01:07.4]} 33... Re7 {[%clk 0:01:37.3]} 34. g5 {[%clk 0:00:57.2]} 34...
Nd5 {[%clk 0:01:17.5]} 35. Rh4 {[%clk 0:00:57.7]} 35... Qe6 {[%clk 0:01:01.8]}
36. Ne5 {[%clk 0:00:52.2]} 36... c5 {[%clk 0:00:56]} 37. Nf3 {[%clk 0:00:24.4]}
37... cxd4 {[%clk 0:00:32]} 38. Qxd4+ {[%clk 0:00:24.2]} 38... Kg8 {[%clk
0:00:32.6]} 39. b4 {[%clk 0:00:16.9]} 39... f6 {[%clk 0:00:33]} 40. gxf6 {[%clk
0:00:16.3]} 40... Nxf6 {[%clk 0:00:33.9]} 41. Rf4 {[%clk 0:00:11.9]} 41... Nd5
{[%clk 0:00:31.7]} 42. Rh4 {[%clk 0:00:12.1]} 42... Rd7 {[%clk 0:00:30.6]} 43.
b5 {[%clk 0:00:11.1]} 43... Ne7 {[%clk 0:00:24.8]} 44. Qc4 {[%clk 0:00:10.3]}
44... Qxc4 {[%clk 0:00:23.4]} 45. Rxc4 {[%clk 0:00:11.2]} 45... Nd5 {[%clk
0:00:17.3]} 46. a4 {[%clk 0:00:10.2]} 46... Nb6 {[%clk 0:00:16.8]} 47. Rb4
{[%clk 0:00:10.7]} 47... Nd5 {[%clk 0:00:16.7]} 48. Rd4 {[%clk 0:00:10]} 48...
Nf6 {[%clk 0:00:11.2]} 49. Rc4 {[%clk 0:00:09.8]} 49... Kg7 {[%clk 0:00:11.1]}
50. Ne5 {[%clk 0:00:08.7]} 50... Rb7 {[%clk 0:00:10.5]} 51. Rc6 {[%clk 0:00:08]}
51... Nd5 {[%clk 0:00:10.5]} 52. Nc4 {[%clk 0:00:07.7]} 52... Nb6 {[%clk
0:00:09.5]} 53. Nd6 {[%clk 0:00:07.7]} 53... Rd7 {[%clk 0:00:09.4]} 54. a5
{[%clk 0:00:08.1]} 54... Nd5 {[%clk 0:00:09.8]} 55. b6 {[%clk 0:00:02.8]} 55...
axb6 {[%clk 0:00:09.1]} 56. axb6 {[%clk 0:00:03.7]} 56... Kh6 {[%clk 0:00:07.3]}
57. Nc4 {[%clk 0:00:02.7]} 57... Rb7 {[%clk 0:00:05.2]} 58. Rd6 {[%clk
0:00:02.9]} 58... Nc3 {[%clk 0:00:04.7]} 59. Na5 {[%clk 0:00:03.2]} 59... Rb8
{[%clk 0:00:03.9]} 60. b7 {[%clk 0:00:03.8]} 60... Ne4 {[%clk 0:00:03.9]} 61.
Rc6 {[%clk 0:00:03.7]} 1-0

[Event "Late-Titled-Tuesday-Blitz-October-17-2023"]
[Site "Chess.com"]
[Date "2023.10.17"]
[Round "8"]
[White "krzyzan94"]
[Black "rasmussvane"]
[Result "1/2-1/2"]
[WhiteElo "2783"]
[BlackElo "2967"]
[TimeControl "180+1"]
[EndTime "15:26:20 PDT"]
[Termination "Game drawn - insufficient material"]

1. e4 {[%clk 0:03:00.9]} 1... c6 {[%clk 0:02:56.3]} 2. d4 {[%clk 0:02:58.9]}
2... d5 {[%clk 0:02:55.8]} 3. e5 {[%clk 0:02:59.6]} 3... Bf5 {[%clk 0:02:55.5]}
4. c4 {[%clk 0:02:59.1]} 4... e6 {[%clk 0:02:54.6]} 5. Nc3 {[%clk 0:02:59]} 5...
Ne7 {[%clk 0:02:53.6]} 6. h3 {[%clk 0:02:56.5]} 6... Nd7 {[%clk 0:02:51.5]} 7.
Nf3 {[%clk 0:02:54.8]} 7... h6 {[%clk 0:02:49]} 8. a3 {[%clk 0:02:42.2]} 8...
dxc4 {[%clk 0:02:48.1]} 9. Bxc4 {[%clk 0:02:42.6]} 9... Nb6 {[%clk 0:02:48.4]}
10. Bb3 {[%clk 0:02:41]} 10... Ned5 {[%clk 0:02:46.8]} 11. O-O {[%clk
0:02:40.6]} 11... Be7 {[%clk 0:02:46.3]} 12. Qe2 {[%clk 0:02:34.1]} 12... O-O
{[%clk 0:02:40.9]} 13. Ne4 {[%clk 0:02:34.3]} 13... Rc8 {[%clk 0:02:40.9]} 14.
Rd1 {[%clk 0:02:24.3]} 14... Qc7 {[%clk 0:02:37.8]} 15. Bd2 {[%clk 0:02:06.2]}
15... Rfd8 {[%clk 0:02:13.7]} 16. Rac1 {[%clk 0:02:05.9]} 16... Qb8 {[%clk
0:01:54.1]} 17. g4 {[%clk 0:01:51.7]} 17... Bh7 {[%clk 0:01:52.8]} 18. h4 {[%clk
0:01:51.8]} 18... Nd7 {[%clk 0:01:51.5]} 19. Ng3 {[%clk 0:01:39.5]} 19... Nf8
{[%clk 0:01:46.9]} 20. g5 {[%clk 0:01:35.6]} 20... hxg5 {[%clk 0:01:33.8]} 21.
Bxg5 {[%clk 0:01:35.4]} 21... Ng6 {[%clk 0:01:26.3]} 22. Bxd5 {[%clk 0:01:08.3]}
22... Bxg5 {[%clk 0:00:39.1]} 23. Nxg5 {[%clk 0:00:57.8]} 23... Rxd5 {[%clk
0:00:19]} 24. Qh5 {[%clk 0:00:57.8]} 24... Nf8 {[%clk 0:00:18.2]} 25. Qxf7+
{[%clk 0:00:55.6]} 25... Kh8 {[%clk 0:00:18.6]} 26. Qf3 {[%clk 0:00:41]} 26...
Qc7 {[%clk 0:00:14.2]} 27. Nf7+ {[%clk 0:00:38.6]} 27... Kg8 {[%clk 0:00:14.1]}
28. Nd6 {[%clk 0:00:39.2]} 28... Rd8 {[%clk 0:00:13.3]} 29. h5 {[%clk
0:00:35.8]} 29... Qe7 {[%clk 0:00:12.6]} 30. Nge4 {[%clk 0:00:31.2]} 30... Bxe4
{[%clk 0:00:12.5]} 31. Qxe4 {[%clk 0:00:28.2]} 31... Qg5+ {[%clk 0:00:12.9]} 32.
Kf1 {[%clk 0:00:25.5]} 32... Qxh5 {[%clk 0:00:13.4]} 33. Rd3 {[%clk 0:00:24.9]}
33... Ng6 {[%clk 0:00:13]} 34. Rg3 {[%clk 0:00:22.5]} 34... Ne7 {[%clk
0:00:11.1]} 35. Kg2 {[%clk 0:00:19.6]} 35... Nf5 {[%clk 0:00:10.9]} 36. Nxf5
{[%clk 0:00:11.4]} 36... Qxf5 {[%clk 0:00:11.8]} 37. Qxf5 {[%clk 0:00:06.8]}
37... exf5 {[%clk 0:00:12.7]} 38. Re1 {[%clk 0:00:03.7]} 38... Rxd4 {[%clk
0:00:12]} 39. e6 {[%clk 0:00:04.4]} 39... Re8 {[%clk 0:00:12.7]} 40. Re5 {[%clk
0:00:04]} 40... Re4 {[%clk 0:00:12.1]} 41. Rxf5 {[%clk 0:00:03.4]} 41... R8xe6
{[%clk 0:00:11.7]} 42. Rfg5 {[%clk 0:00:03.7]} 42... Re7 {[%clk 0:00:12.2]} 43.
Rd3 {[%clk 0:00:02.7]} 43... Re2 {[%clk 0:00:12.4]} 44. b4 {[%clk 0:00:02.3]}
44... Rf7 {[%clk 0:00:12.5]} 45. Rd8+ {[%clk 0:00:02.8]} 45... Kh7 {[%clk
0:00:13]} 46. Rh5+ {[%clk 0:00:02.8]} 46... Kg6 {[%clk 0:00:13.6]} 47. Rh4
{[%clk 0:00:02.6]} 47... Rexf2+ {[%clk 0:00:14]} 48. Kg1 {[%clk 0:00:02.4]}
48... Rf1+ {[%clk 0:00:14.7]} 49. Kg2 {[%clk 0:00:03.1]} 49... R7f2+ {[%clk
0:00:15.3]} 50. Kg3 {[%clk 0:00:03.6]} 50... Rf3+ {[%clk 0:00:16]} 51. Kg2
{[%clk 0:00:04.3]} 51... R1f2+ {[%clk 0:00:16.5]} 52. Kg1 {[%clk 0:00:04.8]}
52... Rb2 {[%clk 0:00:16.1]} 53. Rg4+ {[%clk 0:00:05.2]} 53... Kh7 {[%clk
0:00:14.6]} 54. Rd7 {[%clk 0:00:04.9]} 54... Kh6 {[%clk 0:00:08.7]} 55. Rgxg7
{[%clk 0:00:03.4]} 55... Rf6 {[%clk 0:00:03.7]} 56. Rg3 {[%clk 0:00:03.4]} 56...
Rg6 {[%clk 0:00:03.6]} 57. Rxg6+ {[%clk 0:00:02.7]} 57... Kxg6 {[%clk
0:00:04.5]} 58. Rxb7 {[%clk 0:00:03]} 58... Rb3 {[%clk 0:00:05.1]} 59. Rxa7
{[%clk 0:00:03.1]} 59... Kf5 {[%clk 0:00:05.7]} 60. Ra6 {[%clk 0:00:03.6]} 60...
Ke5 {[%clk 0:00:05.9]} 61. Rxc6 {[%clk 0:00:03.8]} 61... Rxa3 {[%clk 0:00:06.2]}
62. Rc5+ {[%clk 0:00:04.1]} 62... Kd4 {[%clk 0:00:06.4]} 63. Rf5 {[%clk
0:00:04]} 63... Rb3 {[%clk 0:00:06.6]} 64. b5 {[%clk 0:00:04.6]} 64... Kc4
{[%clk 0:00:06.8]} 65. Kf2 {[%clk 0:00:04.2]} 65... Rxb5 {[%clk 0:00:07.2]} 66.
Rxb5 {[%clk 0:00:04.9]} 66... Kxb5 {[%clk 0:00:08]} 1/2-1/2

[Event "Late-Titled-Tuesday-Blitz-October-17-2023"]
[Site "Chess.com"]
[Date "2023.10.17"]
[Round "8"]
[White "BogdanDeac"]
[Black "Alexander_Donchenko"]
[Result "1/2-1/2"]
[WhiteElo "2980"]
[BlackElo "2878"]
[TimeControl "180+1"]
[EndTime "15:26:21 PDT"]
[Termination "Game drawn by repetition"]

1. d4 {[%clk 0:02:51.5]} 1... Nf6 {[%clk 0:02:59.5]} 2. c4 {[%clk 0:02:50.5]}
2... g6 {[%clk 0:02:59.9]} 3. Nf3 {[%clk 0:02:44.7]} 3... Bg7 {[%clk 0:03:00.1]}
4. e3 {[%clk 0:02:45.1]} 4... O-O {[%clk 0:02:59.9]} 5. Be2 {[%clk 0:02:45.8]}
5... d6 {[%clk 0:03:00.3]} 6. O-O {[%clk 0:02:45.2]} 6... Bg4 {[%clk 0:02:59.9]}
7. h3 {[%clk 0:02:42.5]} 7... Bxf3 {[%clk 0:03:00.3]} 8. Bxf3 {[%clk 0:02:43.4]}
8... c6 {[%clk 0:03:00.7]} 9. Nc3 {[%clk 0:02:41.7]} 9... e5 {[%clk 0:03:00.3]}
10. d5 {[%clk 0:02:41.7]} 10... c5 {[%clk 0:03:00.4]} 11. e4 {[%clk 0:02:36.5]}
11... Nbd7 {[%clk 0:02:59.4]} 12. h4 {[%clk 0:02:36.3]} 12... Ne8 {[%clk
0:02:51.2]} 13. h5 {[%clk 0:02:35.2]} 13... f5 {[%clk 0:02:51.1]} 14. hxg6
{[%clk 0:02:31.1]} 14... hxg6 {[%clk 0:02:52]} 15. g3 {[%clk 0:02:31.4]} 15...
Qe7 {[%clk 0:02:39.3]} 16. Kg2 {[%clk 0:02:30.5]} 16... Nef6 {[%clk 0:02:30.9]}
17. Qe2 {[%clk 0:02:12.3]} 17... f4 {[%clk 0:02:20]} 18. Rh1 {[%clk 0:01:38.9]}
18... g5 {[%clk 0:02:09.3]} 19. Bg4 {[%clk 0:01:32.4]} 19... Nxg4 {[%clk
0:02:04.5]} 20. Qxg4 {[%clk 0:01:33.3]} 20... Nf6 {[%clk 0:01:52.1]} 21. Qxg5
{[%clk 0:01:29.4]} 21... Nxd5 {[%clk 0:01:52.4]} 22. Qxe7 {[%clk 0:01:12.7]}
22... Nxe7 {[%clk 0:01:53.3]} 23. Bd2 {[%clk 0:01:00.4]} 23... a6 {[%clk
0:01:52.5]} 24. Rh4 {[%clk 0:00:56.2]} 24... fxg3 {[%clk 0:01:42.5]} 25. fxg3
{[%clk 0:00:55.6]} 25... Rab8 {[%clk 0:01:40.1]} 26. Rd1 {[%clk 0:00:47.6]}
26... b5 {[%clk 0:01:39.6]} 27. Bg5 {[%clk 0:00:47.3]} 27... Ng6 {[%clk
0:01:34.1]} 28. Rg4 {[%clk 0:00:43.5]} 28... bxc4 {[%clk 0:01:29.6]} 29. Bc1
{[%clk 0:00:37.8]} 29... Rf6 {[%clk 0:01:29.5]} 30. Nd5 {[%clk 0:00:37.6]} 30...
Re6 {[%clk 0:01:24.6]} 31. Rxg6 {[%clk 0:00:12.8]} 31... Rxg6 {[%clk 0:01:25.5]}
32. Ne7+ {[%clk 0:00:13]} 32... Kf7 {[%clk 0:01:24.4]} 33. Nxg6 {[%clk
0:00:13.9]} 33... Kxg6 {[%clk 0:01:21.7]} 34. Rxd6+ {[%clk 0:00:14.4]} 34... Kf7
{[%clk 0:01:17.9]} 35. Rxa6 {[%clk 0:00:14.3]} 35... Rd8 {[%clk 0:01:17.5]} 36.
Ra4 {[%clk 0:00:10]} 36... Rd4 {[%clk 0:01:15.3]} 37. Be3 {[%clk 0:00:09.6]}
37... Rd3 {[%clk 0:00:57.9]} 38. Kf2 {[%clk 0:00:06.2]} 38... c3 {[%clk
0:00:56.5]} 39. b3 {[%clk 0:00:05.5]} 39... c2 {[%clk 0:00:51.6]} 40. Rc4 {[%clk
0:00:05.5]} 40... Rxe3 {[%clk 0:00:51.2]} 41. Kxe3 {[%clk 0:00:05.6]} 41... Bh6+
{[%clk 0:00:50.8]} 42. Kd3 {[%clk 0:00:05.9]} 42... c1=Q {[%clk 0:00:51.7]} 43.
Rxc1 {[%clk 0:00:04.6]} 43... Bxc1 {[%clk 0:00:52.6]} 44. Kc4 {[%clk 0:00:03.8]}
44... Ba3 {[%clk 0:00:52.2]} 45. Kd5 {[%clk 0:00:03.2]} 45... Kf6 {[%clk
0:00:52.8]} 46. g4 {[%clk 0:00:03.6]} 46... Kg5 {[%clk 0:00:32]} 47. Kxe5 {[%clk
0:00:03.8]} 47... Kxg4 {[%clk 0:00:32.1]} 48. Kd5 {[%clk 0:00:03.3]} 48... Kg5
{[%clk 0:00:28.1]} 49. Ke5 {[%clk 0:00:03.1]} 49... Kg6 {[%clk 0:00:26.1]} 50.
Ke6 {[%clk 0:00:03.2]} 50... Kg7 {[%clk 0:00:24.9]} 51. Ke5 {[%clk 0:00:02.2]}
51... Kf7 {[%clk 0:00:24.6]} 52. Kf5 {[%clk 0:00:02.6]} 52... Ke7 {[%clk
0:00:24.6]} 53. Ke5 {[%clk 0:00:03.1]} 53... Kd7 {[%clk 0:00:20.9]} 54. Kd5
{[%clk 0:00:03.4]} 54... Ke7 {[%clk 0:00:20.1]} 55. Ke5 {[%clk 0:00:03.7]} 55...
Kd7 {[%clk 0:00:20.3]} 56. Kd5 {[%clk 0:00:04]} 56... Kc7 {[%clk 0:00:19.8]} 57.
Ke6 {[%clk 0:00:04.1]} 57... Bc1 {[%clk 0:00:17.1]} 58. Kd5 {[%clk 0:00:03.8]}
58... Ba3 {[%clk 0:00:09.7]} 59. Ke6 {[%clk 0:00:04]} 59... Kd8 {[%clk
0:00:08.3]} 60. e5 {[%clk 0:00:03.8]} 60... Ke8 {[%clk 0:00:08.4]} 61. Kf6
{[%clk 0:00:04.3]} 61... Kf8 {[%clk 0:00:07.5]} 62. Ke6 {[%clk 0:00:04.3]} 62...
Ke8 {[%clk 0:00:07.9]} 63. Kf6 {[%clk 0:00:05]} 63... Kf8 {[%clk 0:00:06.6]} 64.
Ke6 {[%clk 0:00:05]} 64... Ke8 {[%clk 0:00:07.2]} 1/2-1/2

[Event "Late-Titled-Tuesday-Blitz-October-17-2023"]
[Site "Chess.com"]
[Date "2023.10.17"]
[Round "8"]
[White "Carlitus2004"]
[Black "Yushko_Olga"]
[Result "1-0"]
[WhiteElo "2491"]
[BlackElo "2191"]
[TimeControl "180+1"]
[EndTime "15:26:48 PDT"]
[Termination "Carlitus2004 won on time"]

1. e4 {[%clk 0:03:00.9]} 1... e6 {[%clk 0:02:59.9]} 2. d4 {[%clk 0:03:00.8]}
2... d5 {[%clk 0:03:00.1]} 3. exd5 {[%clk 0:03:01.4]} 3... exd5 {[%clk
0:03:00.3]} 4. Bd3 {[%clk 0:03:02.2]} 4... Nf6 {[%clk 0:03:00.8]} 5. c3 {[%clk
0:03:02.5]} 5... Be7 {[%clk 0:03:01.3]} 6. Bg5 {[%clk 0:03:02.5]} 6... O-O
{[%clk 0:03:01.9]} 7. Nf3 {[%clk 0:03:03.2]} 7... Bg4 {[%clk 0:03:01.5]} 8. Nbd2
{[%clk 0:03:03.8]} 8... c5 {[%clk 0:03:01.6]} 9. O-O {[%clk 0:03:04.2]} 9... Nc6
{[%clk 0:03:01.9]} 10. Qc2 {[%clk 0:03:03]} 10... h6 {[%clk 0:03:01.4]} 11. Bh4
{[%clk 0:03:02.1]} 11... cxd4 {[%clk 0:03:01.3]} 12. Nxd4 {[%clk 0:02:57.6]}
12... Nxd4 {[%clk 0:03:00.4]} 13. cxd4 {[%clk 0:02:58.5]} 13... Rc8 {[%clk
0:03:00.7]} 14. Qb3 {[%clk 0:02:58.9]} 14... b6 {[%clk 0:02:54.4]} 15. Rac1
{[%clk 0:02:53.2]} 15... Be6 {[%clk 0:02:47.9]} 16. Nf3 {[%clk 0:02:50.2]} 16...
Ne4 {[%clk 0:02:46.6]} 17. Bxe7 {[%clk 0:02:48.7]} 17... Qxe7 {[%clk 0:02:46.5]}
18. Ba6 {[%clk 0:02:40.8]} 18... Rxc1 {[%clk 0:02:43]} 19. Rxc1 {[%clk
0:02:41.7]} 19... Qf6 {[%clk 0:02:35.1]} 20. Qe3 {[%clk 0:02:37.1]} 20... Bg4
{[%clk 0:02:33.5]} 21. Ne5 {[%clk 0:02:37.1]} 21... Bf5 {[%clk 0:02:27.9]} 22.
f3 {[%clk 0:02:26]} 22... Nd6 {[%clk 0:02:22.9]} 23. Rc6 {[%clk 0:02:12.4]}
23... Qe7 {[%clk 0:02:15.5]} 24. Rc3 {[%clk 0:02:06.6]} 24... Re8 {[%clk
0:02:12]} 25. Kf2 {[%clk 0:01:43.5]} 25... Qh4+ {[%clk 0:01:50.7]} 26. Kg1
{[%clk 0:01:42.6]} 26... f6 {[%clk 0:01:48.1]} 27. Rc6 {[%clk 0:01:42.3]} 27...
Nc4 {[%clk 0:01:37.3]} 28. Bxc4 {[%clk 0:00:25]} 28... dxc4 {[%clk 0:01:35]} 29.
g3 {[%clk 0:00:25.6]} 29... Qh3 {[%clk 0:01:21.7]} 30. g4 {[%clk 0:00:24.8]}
30... Bxg4 {[%clk 0:01:14.2]} 31. Qf4 {[%clk 0:00:24]} 31... Bc8 {[%clk
0:00:58.4]} 32. Rc7 {[%clk 0:00:05]} 32... Bf5 {[%clk 0:00:30]} 33. Ng4 {[%clk
0:00:02.8]} 33... Re1+ {[%clk 0:00:28.4]} 34. Kf2 {[%clk 0:00:03.5]} 34... Qf1+
{[%clk 0:00:28.1]} 35. Kg3 {[%clk 0:00:03.7]} 35... Qg1+ {[%clk 0:00:22.5]} 36.
Kh3 {[%clk 0:00:03.5]} 36... Bxg4+ {[%clk 0:00:15.4]} 37. Qxg4 {[%clk
0:00:04.4]} 37... Qxg4+ {[%clk 0:00:04.7]} 38. Kxg4 {[%clk 0:00:05.3]} 38... Rd1
{[%clk 0:00:03.3]} 39. Rxc4 {[%clk 0:00:05.1]} 39... a5 {[%clk 0:00:03.1]} 40.
h4 {[%clk 0:00:04.2]} 40... Rd2 {[%clk 0:00:03.3]} 41. b4 {[%clk 0:00:03.1]}
41... axb4 {[%clk 0:00:03.1]} 42. Rxb4 {[%clk 0:00:04]} 42... Rxa2 {[%clk
0:00:03.2]} 43. Rxb6 {[%clk 0:00:04.2]} 43... Rd2 {[%clk 0:00:03.7]} 44. Rd6
{[%clk 0:00:04.3]} 44... Kf7 {[%clk 0:00:04]} 45. Kf5 {[%clk 0:00:04.8]} 45...
Ke7 {[%clk 0:00:04.3]} 46. Re6+ {[%clk 0:00:04.5]} 46... Kf7 {[%clk 0:00:04.3]}
47. Rd6 {[%clk 0:00:04.9]} 47... Ke7 {[%clk 0:00:04.4]} 48. Re6+ {[%clk
0:00:05.4]} 48... Kf7 {[%clk 0:00:05]} 49. Re4 {[%clk 0:00:05.5]} 49... g6+
{[%clk 0:00:05.1]} 50. Kf4 {[%clk 0:00:05.7]} 50... Rh2 {[%clk 0:00:03.8]} 51.
Kg3 {[%clk 0:00:05.6]} 51... Rd2 {[%clk 0:00:04.4]} 52. Rf4 {[%clk 0:00:05.1]}
52... Ke6 {[%clk 0:00:04.3]} 53. Re4+ {[%clk 0:00:05.1]} 53... Kd5 {[%clk
0:00:04.2]} 54. Rf4 {[%clk 0:00:05.6]} 54... Ke6 {[%clk 0:00:04]} 55. Re4+
{[%clk 0:00:05]} 55... Kd5 {[%clk 0:00:04.2]} 56. Rg4 {[%clk 0:00:05.7]} 56...
g5 {[%clk 0:00:03.6]} 57. hxg5 {[%clk 0:00:05.8]} 57... hxg5 {[%clk 0:00:04.5]}
58. Re4 {[%clk 0:00:03]} 58... Rxd4 {[%clk 0:00:04.1]} 59. Re8 {[%clk
0:00:03.9]} 59... Kd6 {[%clk 0:00:02.3]} 60. Rd8+ {[%clk 0:00:04.1]} 60... Ke5
{[%clk 0:00:02.6]} 61. Re8+ {[%clk 0:00:04.8]} 61... Kf5 {[%clk 0:00:02.7]} 62.
Rc8 {[%clk 0:00:05.6]} 62... Rd5 {[%clk 0:00:02.3]} 63. Rf8 {[%clk 0:00:05]}
63... Rc5 {[%clk 0:00:02.1]} 64. Rd8 {[%clk 0:00:05]} 64... Rb5 {[%clk
0:00:02.3]} 65. Rc8 {[%clk 0:00:05.1]} 65... Rb3 {[%clk 0:00:01.4]} 66. Rc5+
{[%clk 0:00:04.9]} 66... Kg6 {[%clk 0:00:01.1]} 67. Ra5 {[%clk 0:00:04.8]} 1-0